[Event "FIDE World Cadets GU12 2022"]
[Site "Batumi"]
[Date "2022.09.19"]
[Round "4.10"]
[White "Vlasova, Mariya N"]
[Black "Aravindakshan, Sahana"]
[Result "0-1"]
[ECO "C47"]
[WhiteElo "1456"]
[BlackElo "1776"]
[Annotator "NA COMBH"]
[PlyCount "64"]
[EventDate "2022.09.16"]
[EventType "swiss"]
[EventCountry "GEO"]
[SourceTitle "playchess.com"]
[Source "ChessBase"]
[SourceQuality "1"]
[TimeControl "5400+30"]

1. e4 {[%emt 0:01:00]} e5 {[%emt 0:01:00]} 2. Nf3 {[%emt 0:00:30]} Nc6 {[%emt 0:00:30]} 3. Nc3 {[%emt 0:00:30]} Nf6 {[%emt 0:00:30]} 4. d4 {[%emt 0:00:30]} exd4 {[%emt 0:00:30]} 5. Nxd4 {[%emt 0:00:00]} Bb4 {[%emt 0:00:30]} 6. Bg5 {[%emt 0:01:00]} h6 {[%emt 0:08:30]} 7. Nxc6 {[%emt 0:01:30]} Bxc3+ {[%emt 0:02:30]} 8. bxc3 {[%emt 0:00:30]} bxc6 {[%emt 0:00:30]} 9. Bxf6 {[%emt 0:00:30]} Qxf6 {[%emt 0:00:30]} 10. Qd4 {[%emt 0:00:00]} Qg6 {[%emt 0:20:30]} 11. f4 {[%emt 0:06:00]} O-O {[%emt 0:02:30]} 12. Bd3 {[%emt 0:02:30]} d6 {[%emt 0:11:30]} 13. f5 {[%emt 0:03:30]} Qg5 {[%emt 0:03:30]} 14. O-O {[%emt 0:00:30]} c5 {[%emt 0:02:30]} 15. Qa4 {[%emt 0:04:30]} Rd8 {[%emt 0:09:30]} 16. Qc6 {[%emt 0:02:30]} Bd7 {[%emt 0:03:30]} 17. Qxc7 {[%emt 0:00:30]} Qf6 {[%emt 0:01:30]} 18. Qa5 {[%emt 0:00:30]} Bc6 {[%emt 0:00:30]} 19. Rae1 {[%emt 0:04:30]} Re8 {[%emt 0:03:30]} 20. Qa6 {[%emt 0:00:30]} Rac8 {[%emt 0:03:30]} 21. Qc4 {[%emt 0:01:30]} Re5 {[%emt 0:01:30]} 22. Qa6 {[%emt 0:03:30]} Rc7 {[%emt 0:01:30]} 23. Qa5 {[%emt 0:03:30]} Rce7 {[%emt 0:02:00]} 24. Rb1 {[%emt 0:07:30]} Re8 {[%emt 0:03:33]} 25. Qxa7 {[%emt 0:01:30]} Bxe4 {[%emt 0:05:17]} 26. Rb8 {[%emt 0:05:30]} Bd5 {[%emt 0:03:08]} 27. c4 {[%emt 0:03:30]} Bc6 {[%emt 0:00:54]} 28. Rxe8+ {[%emt 0:00:00]} Rxe8 {[%emt 0:00:05]} 29. Qc7 {[%emt 0:01:00]} Ba8 {[%emt 0:02:27]} 30. Rb1 {[%emt 0:03:30]} Qd4+ {[%emt 0:02:35]} 31. Kh1 {[%emt 0:00:00]} Qf2 {[%emt 0:00:44]} 32. Bf1 {[%emt 0:07:00]} Bxg2+ {[%emt 0:00:34]} 0-1

[Event "FIDE World Cadets GU12 2022"]
[Site "Batumi"]
[Date "2022.09.19"]
[Round "4.11"]
[White "Goriachkina, Oksana"]
[Black "Sezdbekova, Aizhan"]
[Result "1-0"]
[ECO "E18"]
[WhiteElo "1748"]
[BlackElo "1447"]
[Annotator "NA COMBH"]
[PlyCount "103"]
[EventDate "2022.09.16"]
[EventType "swiss"]
[EventCountry "GEO"]
[SourceTitle "playchess.com"]
[Source "ChessBase"]
[SourceQuality "1"]
[TimeControl "5400+30"]

1. d4 {[%emt 0:01:00]} Nf6 {[%emt 0:01:00]} 2. c4 {[%emt 0:00:30]} e6 {[%emt 0:00:30]} 3. g3 {[%emt 0:00:30]} Be7 {[%emt 0:00:30]} 4. Bg2 {[%emt 0:00:00]} d5 {[%emt 0:00:30]} 5. Nf3 {[%emt 0:01:00]} O-O {[%emt 0:01:30]} 6. O-O {[%emt 0:01:30]} b6 {[%emt 0:01:30]} 7. cxd5 {[%emt 0:05:30]} exd5 {[%emt 0:02:30]} 8. Nc3 {[%emt 0:00:30]} Bb7 {[%emt 0:05:30]} 9. Bf4 {[%emt 0:00:30]} Ne4 {[%emt 0:18:30]} 10. Qc2 {[%emt 0:09:30]} Nxc3 {[%emt 0:12:30]} 11. Qxc3 {[%emt 0:03:30]} Bd6 {[%emt 0:02:30]} 12. Rac1 {[%emt 0:02:30]} Bxf4 {[%emt 0:01:30]} 13. gxf4 {[%emt 0:00:30]} c6 {[%emt 0:08:30]} 14. e3 {[%emt 0:02:30]} Nd7 {[%emt 0:08:30]} 15. Ne5 {[%emt 0:06:30]} Rc8 {[%emt 0:07:30]} 16. Kh1 {[%emt 0:05:30]} Nxe5 {[%emt 0:04:30]} 17. fxe5 {[%emt 0:01:30]} Ba6 {[%emt 0:01:30]} 18. Rg1 {[%emt 0:01:30]} Be2 {[%emt 0:00:30]} 19. Qe1 {[%emt 0:03:30]} Bh5 {[%emt 0:01:11]} 20. f4 {[%emt 0:01:30]} Qd7 {[%emt 0:07:57]} 21. Qg3 {[%emt 0:04:30]} Qg4 {[%emt 0:00:57]} 22. Qxg4 {[%emt 0:01:30]} Bxg4 {[%emt 0:00:06]} 23. Rc3 {[%emt 0:00:30]} Bd7 {[%emt 0:01:24]} 24. Rgc1 {[%emt 0:04:30]} Rfd8 {[%emt 0:03:28]} 25. Bf3 {[%emt 0:02:30]} h6 {[%emt 0:01:18]} 26. Kg2 {[%emt 0:00:30]} Kf8 {[%emt 0:00:47]} 27. Kg3 {[%emt 0:00:30]} Ke7 {[%emt 0:00:22]} 28. Bg4 {[%emt 0:03:30]} g6 {[%emt 0:01:40]} 29. Kf3 {[%emt 0:05:30]} Rc7 {[%emt 0:02:56]} 30. Bxd7 {[%emt 0:01:30]} Kxd7 {[%emt 0:00:30]} 31. e4 {[%emt 0:00:30]} Rdc8 {[%emt 0:00:31]} 32. f5 {[%emt 0:03:30]} gxf5 {[%emt 0:01:33]} 33. exd5 {[%emt 0:02:30]} cxd5 {[%emt 0:00:49]} 34. Rxc7+ {[%emt 0:00:30]} Rxc7 {[%emt 0:00:30]} 35. Rxc7+ {[%emt 0:00:30]} Kxc7 {[%emt 0:00:30]} 36. Kf4 {[%emt 0:00:00]} Kd7 {[%emt 0:00:00]} 37. Kxf5 {[%emt 0:00:00]} Ke7 {[%emt 0:00:23]} 38. h3 {[%emt 0:00:00]} a5 {[%emt 0:00:29]} 39. a4 {[%emt 0:00:00]} h5 {[%emt 0:01:28]} 40. Kg5 {[%emt 0:02:30]} Ke6 {[%emt 0:00:30]} 41. h4 {[%emt 0:00:30]} Ke7 {[%emt 0:00:30]} 42. Kxh5 {[%emt 0:00:00]} f6 {[%emt 0:00:14]} 43. exf6+ {[%emt 0:00:00]} Kxf6 {[%emt 0:00:30]} 44. Kg4 {[%emt 0:00:30]} Kg6 {[%emt 0:00:30]} 45. Kf4 {[%emt 0:00:30]} Kf6 {[%emt 0:00:30]} 46. h5 {[%emt 0:00:30]} Ke6 {[%emt 0:00:30]} 47. h6 {[%emt 0:00:30]} Kf6 {[%emt 0:00:00]} 48. h7 {[%emt 0:00:00]} Kg7 {[%emt 0:00:00]} 49. Ke5 {[%emt 0:00:00]} Kxh7 {[%emt 0:00:00]} 50. Kxd5 {[%emt 0:00:00]} Kg7 {[%emt 0:00:00]} 51. Kc6 {[%emt 0:00:00]} Kf8 {[%emt 0:00:00]} 52. Kc7 {[%emt 0:00:00]} 1-0

[Event "FIDE World Cadets GU12 2022"]
[Site "Batumi"]
[Date "2022.09.19"]
[Round "4.12"]
[White "Vizcarra Quispe, Ramalia Bellaluz"]
[Black "Garcia Rodriguez, Laia"]
[Result "1/2-1/2"]
[ECO "A26"]
[WhiteElo "1429"]
[BlackElo "1742"]
[Annotator "NA COMBH"]
[PlyCount "90"]
[EventDate "2022.09.16"]
[EventType "swiss"]
[EventCountry "GEO"]
[SourceTitle "playchess.com"]
[Source "ChessBase"]
[SourceQuality "1"]
[TimeControl "5400+30"]

1. c4 {[%emt 0:01:00]} e5 {[%emt 0:01:00]} 2. d3 {[%emt 0:00:30]} Nc6 {[%emt 0:00:30]} 3. Nc3 {[%emt 0:00:30]} g6 {[%emt 0:00:30]} 4. g3 {[%emt 0:00:30]} Bg7 {[%emt 0:00:30]} 5. Bg2 {[%emt 0:00:30]} d6 {[%emt 0:00:30]} 6. Nf3 {[%emt 0:03:30]} Nge7 {[%emt 0:00:30]} 7. O-O {[%emt 0:02:30]} O-O {[%emt 0:00:30]} 8. e3 {[%emt 0:00:30]} f5 {[%emt 0:03:30]} 9. d4 {[%emt 0:01:30]} e4 {[%emt 0:23:30]} 10. Ne1 {[%emt 0:00:30]} d5 {[%emt 0:00:30]} 11. b3 {[%emt 0:02:30]} Be6 {[%emt 0:00:30]} 12. c5 {[%emt 0:00:00]} h6 {[%emt 0:01:30]} 13. Rb1 {[%emt 0:02:00]} a5 {[%emt 0:01:30]} 14. Nc2 {[%emt 0:10:30]} b6 {[%emt 0:10:30]} 15. Ba3 {[%emt 0:01:30]} Rb8 {[%emt 0:02:30]} 16. b4 {[%emt 0:02:30]} axb4 {[%emt 0:01:30]} 17. Nxb4 {[%emt 0:05:30]} Na5 {[%emt 0:06:30]} 18. Nc2 {[%emt 0:05:30]} Nc4 {[%emt 0:00:30]} 19. cxb6 {[%emt 0:14:30]} Rxb6 {[%emt 0:00:30]} 20. Na4 {[%emt 0:00:00]} Rxb1 {[%emt 0:01:30]} 21. Qxb1 {[%emt 0:00:00]} Nxa3 {[%emt 0:13:30]} 22. Nxa3 {[%emt 0:00:30]} Qd6 {[%emt 0:01:30]} 23. Nc5 {[%emt 0:00:00]} Bd7 {[%emt 0:01:30]} 24. Nb5 {[%emt 0:02:00]} Bxb5 {[%emt 0:00:30]} 25. Qxb5 {[%emt 0:00:00]} c6 {[%emt 0:01:30]} 26. Qa6 {[%emt 0:00:00]} Rb8 {[%emt 0:01:30]} 27. a4 {[%emt 0:00:30]} Qd8 {[%emt 0:05:30]} 28. Ra1 {[%emt 0:02:30]} Ra8 {[%emt 0:00:30]} 29. Qe2 {[%emt 0:03:30]} Qa5 {[%emt 0:00:30]} 30. Qe1 {[%emt 0:00:00]} Qxe1+ {[%emt 0:05:48]} 31. Rxe1 {[%emt 0:00:00]} Bf8 {[%emt 0:00:07]} 32. Ra1 {[%emt 0:01:30]} Nc8 {[%emt 0:00:30]} 33. a5 {[%emt 0:00:30]} Bxc5 {[%emt 0:01:34]} 34. dxc5 {[%emt 0:00:30]} Na7 {[%emt 0:00:00]} 35. Bf1 {[%emt 0:00:30]} Rb8 {[%emt 0:00:20]} 36. Ra2 {[%emt 0:04:30]} Kf7 {[%emt 0:00:27]} 37. Be2 {[%emt 0:01:30]} Ke6 {[%emt 0:00:40]} 38. Kf1 {[%emt 0:01:30]} Ke5 {[%emt 0:00:28]} 39. Ra4 {[%emt 0:02:30]} Rb2 {[%emt 0:00:43]} 40. Ke1 {[%emt 0:00:30]} Rb3 {[%emt 0:01:09]} 41. Kd2 {[%emt 0:00:30]} Rb2+ {[%emt 0:01:06]} 42. Kd1 {[%emt 0:00:30]} h5 {[%emt 0:00:56]} 43. a6 {[%emt 0:00:30]} Ke6 {[%emt 0:00:42]} 44. Rd4 {[%emt 0:05:30]} Ke5 {[%emt 0:02:33]} 45. h4 {[%emt 0:02:30]} Nc8 {[%emt 0:00:30]} 1/2-1/2

[Event "FIDE World Cadets GU12 2022"]
[Site "Batumi"]
[Date "2022.09.19"]
[Round "4.13"]
[White "Negre, Emilie"]
[Black "Kholyavko, Mariya"]
[Result "0-1"]
[ECO "A29"]
[WhiteElo "1722"]
[BlackElo "1421"]
[Annotator "NA COMBH"]
[PlyCount "70"]
[EventDate "2022.09.16"]
[EventType "swiss"]
[EventCountry "GEO"]
[SourceTitle "playchess.com"]
[Source "ChessBase"]
[SourceQuality "1"]
[TimeControl "5400+30"]

1. c4 {[%emt 0:01:00]} e5 {[%emt 0:01:00]} 2. g3 {[%emt 0:00:30]} Nf6 {[%emt 0:00:30]} 3. Nc3 {[%emt 0:00:30]} d5 {[%emt 0:00:30]} 4. cxd5 {[%emt 0:00:30]} Nxd5 {[%emt 0:00:30]} 5. Bg2 {[%emt 0:00:30]} Nb6 {[%emt 0:00:30]} 6. Nf3 {[%emt 0:00:30]} Nc6 {[%emt 0:00:30]} 7. O-O {[%emt 0:00:30]} Be7 {[%emt 0:00:30]} 8. a3 {[%emt 0:00:30]} Be6 {[%emt 0:00:00]} 9. b4 {[%emt 0:00:00]} a6 {[%emt 0:00:00]} 10. d3 {[%emt 0:00:00]} O-O {[%emt 0:00:00]} 11. Bb2 {[%emt 0:00:00]} f6 {[%emt 0:00:00]} 12. Rc1 {[%emt 0:04:00]} Qd7 {[%emt 0:06:30]} 13. Ne4 {[%emt 0:00:30]} Bf7 {[%emt 0:04:30]} 14. Nc5 {[%emt 0:10:30]} Bxc5 {[%emt 0:00:30]} 15. bxc5 {[%emt 0:00:30]} Nd5 {[%emt 0:00:30]} 16. d4 {[%emt 0:04:30]} e4 {[%emt 0:00:30]} 17. Nd2 {[%emt 0:09:30]} f5 {[%emt 0:01:30]} 18. e3 {[%emt 0:11:30]} Rab8 {[%emt 0:03:30]} 19. Qa4 {[%emt 0:10:30]} Qe6 {[%emt 0:07:30]} 20. Rfe1 {[%emt 0:06:30]} Bh5 {[%emt 0:03:30]} 21. Qc4 {[%emt 0:07:30]} Kh8 {[%emt 0:04:30]} 22. f3 {[%emt 0:06:30]} Bg6 {[%emt 0:04:30]} 23. g4 {[%emt 0:07:20]} exf3 {[%emt 0:06:30]} 24. Bxf3 {[%emt 0:00:51]} Nce7 {[%emt 0:00:30]} 25. gxf5 {[%emt 0:08:11]} Qxf5 {[%emt 0:00:30]} 26. Kh1 {[%emt 0:01:45]} Qg5 {[%emt 0:08:30]} 27. Qe2 {[%emt 0:04:02]} b5 {[%emt 0:08:30]} 28. Ne4 {[%emt 0:03:11]} Bxe4 {[%emt 0:06:30]} 29. Bxe4 {[%emt 0:00:30]} Qh4 {[%emt 0:00:30]} 30. Bf3 {[%emt 0:00:52]} Nf5 {[%emt 0:00:00]} 31. Qd3 {[%emt 0:01:13]} Ng3+ {[%emt 0:05:00]} 32. Kg2 {[%emt 0:00:30]} Rxf3 {[%emt 0:00:30]} 33. Kxf3 {[%emt 0:00:30]} Qxh2 {[%emt 0:00:30]} 34. Rg1 {[%emt 0:01:19]} Rf8+ {[%emt 0:00:30]} 35. Kg4 {[%emt 0:00:30]} Qh5+ {[%emt 0:00:00]} 0-1

[Event "FIDE World Cadets GU12 2022"]
[Site "Batumi"]
[Date "2022.09.19"]
[Round "4.14"]
[White "Kim, Sarang"]
[Black "Alfano, Emilie"]
[Result "0-1"]
[ECO "C68"]
[WhiteElo "1402"]
[BlackElo "1712"]
[Annotator "NA RC COMBH"]
[PlyCount "176"]
[EventDate "2022.09.16"]
[EventType "swiss"]
[EventCountry "GEO"]
[SourceTitle "playchess.com"]
[Source "ChessBase"]
[SourceQuality "1"]
[TimeControl "5400+30"]

1. e4 {[%emt 0:01:00]} e5 {[%emt 0:01:00]} 2. Nf3 {[%emt 0:00:30]} Nc6 {[%emt 0:00:30]} 3. Bb5 {[%emt 0:00:30]} a6 {[%emt 0:00:30]} 4. Bxc6 {[%emt 0:00:30]} dxc6 {[%emt 0:00:30]} 5. h3 {[%emt 0:00:00]} Ne7 {[%emt 0:04:30]} 6. d3 {[%emt 0:01:00]} f6 {[%emt 0:00:30]} 7. Be3 {[%emt 0:01:30]} Ng6 {[%emt 0:00:30]} 8. Nbd2 {[%emt 0:01:30]} Be6 {[%emt 0:01:30]} 9. d4 {[%emt 0:01:30]} Bd6 {[%emt 0:06:30]} 10. c4 {[%emt 0:04:30]} exd4 {[%emt 0:13:30]} 11. Nxd4 {[%emt 0:00:30]} Bd7 {[%emt 0:00:30]} 12. O-O {[%emt 0:04:30]} c5 {[%emt 0:01:30]} 13. Nf5 {[%emt 0:02:30]} Bxf5 {[%emt 0:00:30]} 14. exf5 {[%emt 0:00:30]} Ne5 {[%emt 0:00:30]} 15. f4 {[%emt 0:00:30]} Nf7 {[%emt 0:00:30]} 16. Qf3 {[%emt 0:04:30]} Rb8 {[%emt 0:01:30]} 17. Rad1 {[%emt 0:10:30]} O-O {[%emt 0:01:30]} 18. Ne4 {[%emt 0:00:30]} b6 {[%emt 0:00:30]} 19. Nxd6 {[%emt 0:00:30]} Nxd6 {[%emt 0:00:00]} 20. g4 {[%emt 0:07:30]} Qe7 {[%emt 0:01:00]} 21. b3 {[%emt 0:03:30]} Rbe8 {[%emt 0:03:30]} 22. Rfe1 {[%emt 0:01:30]} Qf7 {[%emt 0:00:30]} 23. Rd3 {[%emt 0:05:30]} h5 {[%emt 0:07:30]} 24. Bf2 {[%emt 0:02:30]} g6 {[%emt 0:02:30]} 25. fxg6 {[%emt 0:04:30]} Qxg6 {[%emt 0:00:30]} 26. Qd5+ {[%emt 0:00:30]} Kg7 {[%emt 0:01:30]} 27. Rg3 {[%emt 0:00:30]} Rxe1+ {[%emt 0:10:30]} 28. Bxe1 {[%emt 0:02:30]} Qb1 {[%emt 0:03:30]} 29. gxh5+ {[%emt 0:01:30]} Kh8 {[%emt 0:01:30]} 30. Qe6 {[%emt 0:03:30]} Ne4 {[%emt 0:01:30]} 31. Re3 {[%emt 0:09:30]} Rg8+ {[%emt 0:00:00]} 32. Kf1 {[%emt 0:04:30]} Ng3+ {[%emt 0:05:00]} 33. Kf2 {[%emt 0:00:30]} Qc2+ {[%emt 0:03:30]} 34. Kf3 {[%emt 0:06:46]} Nf5 {[%emt 0:02:30]} 35. Qxf6+ {[%emt 0:00:30]} Rg7 {[%emt 0:00:30]} 36. Qd8+ {[%emt 0:07:18]} Kh7 {[%emt 0:00:30]} 37. Qd2 {[%emt 0:00:34]} Nxe3 {[%emt 0:07:08]} 38. Kxe3 {[%emt 0:00:30]} Re7+ {[%emt 0:00:30]} 39. Kf2 {[%emt 0:00:07]} Qxd2+ {[%emt 0:01:18]} 40. Bxd2 {[%emt 0:00:30]} Kh6 {[%emt 0:00:29]} 41. Bc3 {[%emt 0:00:15]} Kxh5 {[%emt 0:00:30]} 42. Bf6 {[%emt 0:00:30]} Rd7 {[%emt 0:00:08]} 43. Ke2 {[%emt 0:00:14]} Kg6 {[%emt 0:01:33]} 44. Bg5 {[%emt 0:00:11]} c6 {[%emt 0:00:44]} 45. h4 {[%emt 0:01:32]} b5 {[%emt 0:00:08]} 46. Kf3 {[%emt 0:01:03]} bxc4 {[%emt 0:00:30]} 47. bxc4 {[%emt 0:00:00]} Rd4 {[%emt 0:00:29]} 48. Kg4 {[%emt 0:00:16]} Rxc4 {[%emt 0:00:30]} 49. h5+ {[%emt 0:00:30]} Kg7 {[%emt 0:00:30]} 50. Kf5 {[%emt 0:00:00]} Rc1 {[%emt 0:00:02]} 51. h6+ {[%emt 0:00:10]} Kf7 {[%emt 0:00:08]} 52. Bf6 {[%emt 0:00:35]} Rh1 {[%emt 0:00:30]} 53. Kg5 {[%emt 0:00:08]} c4 {[%emt 0:00:35]} 54. Be5 {[%emt 0:00:37]} Rh3 {[%emt 0:00:19]} 55. f5 {[%emt 0:01:50]} c3 {[%emt 0:00:21]} 56. f6 {[%emt 0:00:30]} c2 {[%emt 0:00:09]} 57. Bf4 {[%emt 0:01:06]} Rh1 {[%emt 0:00:13]} 58. Kf5 {[%emt 0:00:59]} c1=Q {[%emt 0:00:30]} 59. Bxc1 {[%emt 0:00:24]} Rxc1 {[%emt 0:00:16]} 60. Kg5 {[%emt 0:00:30]} Rg1+ {[%emt 0:00:30]} 61. Kf5 {[%emt 0:00:14]} c5 {[%emt 0:00:30]} 62. Ke5 {[%emt 0:00:30]} c4 {[%emt 0:00:30]} 63. h7 {[%emt 0:00:30]} Rh1 {[%emt 0:00:00]} 64. Kd4 {[%emt 0:00:00]} Rh4+ {[%emt 0:00:00]} 65. Kc3 {[%emt 0:00:09]} Kxf6 {[%emt 0:00:30]} 66. h8=Q+ {[%emt 0:00:30]} Rxh8 {[%emt 0:00:30]} 67. Kxc4 {[%emt 0:00:00]} Rb8 {[%emt 0:00:00]} 68. Kc5 {[%emt 0:00:02]} Ke5 {[%emt 0:00:00]} 69. a4 {[%emt 0:00:30]} Ke4 {[%emt 0:00:30]} 70. a5 {[%emt 0:00:00]} Rb5+ {[%emt 0:00:30]} 71. Kc4 {[%emt 0:00:20]} Rxa5 {[%emt 0:00:30]} 72. Kb4 {[%emt 0:00:30]} Ra1 {[%emt 0:00:30]} 73. Kb3 {[%emt 0:00:30]} Kd4 {[%emt 0:00:00]} 74. Kb2 {[%emt 0:00:00]} Ra5 {[%emt 0:00:00]} 75. Kb3 {[%emt 0:00:00]} Kc5 {[%emt 0:00:00]} 76. Kb2 {[%emt 0:00:00]} Kb4 {[%emt 0:00:00]} 77. Kc2 {[%emt 0:00:00]} Ra2+ {[%emt 0:01:30]} 78. Kd3 {[%emt 0:00:00]} Rb2 {[%emt 0:00:30]} 79. Kd4 {[%emt 0:00:12]} a5 {[%emt 0:00:30]} 80. Kd3 {[%emt 0:00:30]} a4 {[%emt 0:00:30]} 81. Kd4 {[%emt 0:00:30]} a3 {[%emt 0:00:30]} 82. Kd3 {[%emt 0:00:00]} a2 {[%emt 0:00:00]} 83. Ke3 {[%emt 0:00:00]} a1=Q {[%emt 0:00:00]} 84. Kd3 {[%emt 0:00:00]} Qd1+ {[%emt 0:00:00]} 85. Ke4 {[%emt 0:00:09]} Re2+ {[%emt 0:00:00]} 86. Kf4 {[%emt 0:00:30]} Qf1+ {[%emt 0:00:00]} 87. Kg4 {[%emt 0:00:00]} Rg2+ {[%emt 0:00:00]} 88. Kh4 {[%emt 0:00:00]} Qh1# {[%emt 0:00:00]} 0-1

[Event "FIDE World Cadets GU12 2022"]
[Site "Batumi"]
[Date "2022.09.19"]
[Round "4.15"]
[White "Urangoo, Gurvanbaatar"]
[Black "Misheel, Bold"]
[Result "1-0"]
[ECO "B19"]
[WhiteElo "1391"]
[BlackElo "1593"]
[Annotator "NA COMBH"]
[PlyCount "167"]
[EventDate "2022.09.16"]
[EventType "swiss"]
[EventCountry "GEO"]
[SourceTitle "playchess.com"]
[Source "ChessBase"]
[SourceQuality "1"]
[TimeControl "5400+30"]

1. e4 {[%emt 0:01:00]} c6 {[%emt 0:01:00]} 2. d4 {[%emt 0:00:30]} d5 {[%emt 0:00:30]} 3. Nc3 {[%emt 0:00:30]} dxe4 {[%emt 0:00:30]} 4. Nxe4 {[%emt 0:00:30]} Bf5 {[%emt 0:00:30]} 5. Ng3 {[%emt 0:00:30]} Bg6 {[%emt 0:00:30]} 6. Nf3 {[%emt 0:00:00]} e6 {[%emt 0:00:00]} 7. h4 {[%emt 0:00:00]} h6 {[%emt 0:00:00]} 8. h5 {[%emt 0:00:30]} Bh7 {[%emt 0:00:00]} 9. Bd3 {[%emt 0:00:00]} Bxd3 {[%emt 0:00:00]} 10. Qxd3 {[%emt 0:00:00]} Nf6 {[%emt 0:00:00]} 11. Bd2 {[%emt 0:01:30]} Bd6 {[%emt 0:01:00]} 12. Ne4 {[%emt 0:00:30]} Nxe4 {[%emt 0:01:30]} 13. Qxe4 {[%emt 0:00:30]} Nd7 {[%emt 0:00:30]} 14. Qg4 {[%emt 0:05:30]} Qf6 {[%emt 0:01:30]} 15. O-O-O {[%emt 0:01:30]} O-O-O {[%emt 0:00:30]} 16. Kb1 {[%emt 0:01:30]} Nb6 {[%emt 0:02:30]} 17. Rhe1 {[%emt 0:02:30]} Rhg8 {[%emt 0:02:30]} 18. Nh4 {[%emt 0:14:30]} Be7 {[%emt 0:04:30]} 19. Nf3 {[%emt 0:04:30]} Rd5 {[%emt 0:01:30]} 20. Bf4 {[%emt 0:04:30]} Qf5 {[%emt 0:01:30]} 21. Qg3 {[%emt 0:00:30]} Nd7 {[%emt 0:04:30]} 22. a3 {[%emt 0:04:30]} Ra5 {[%emt 0:01:30]} 23. Rd3 {[%emt 0:01:30]} Qxh5 {[%emt 0:01:30]} 24. Ne5 {[%emt 0:05:30]} Nxe5 {[%emt 0:06:30]} 25. Bxe5 {[%emt 0:01:30]} Qg5 {[%emt 0:01:30]} 26. Qh2 {[%emt 0:01:30]} Qh4 {[%emt 0:00:30]} 27. Qxh4 {[%emt 0:06:30]} Bxh4 {[%emt 0:00:30]} 28. Rf3 {[%emt 0:00:30]} f6 {[%emt 0:00:30]} 29. Bh2 {[%emt 0:02:30]} Kd7 {[%emt 0:00:30]} 30. Re4 {[%emt 0:01:30]} Bg5 {[%emt 0:00:30]} 31. Rb3 {[%emt 0:00:00]} b6 {[%emt 0:00:30]} 32. Re1 {[%emt 0:04:00]} f5 {[%emt 0:01:30]} 33. c4 {[%emt 0:01:30]} Re8 {[%emt 0:00:30]} 34. Be5 {[%emt 0:01:30]} Rg8 {[%emt 0:02:30]} 35. Rh3 {[%emt 0:01:30]} Be7 {[%emt 0:00:30]} 36. b4 {[%emt 0:00:30]} Ra6 {[%emt 0:00:30]} 37. Kb2 {[%emt 0:00:00]} Bd6 {[%emt 0:00:30]} 38. Rd3 {[%emt 0:01:00]} g5 {[%emt 0:03:30]} 39. Rh1 {[%emt 0:01:30]} Bf8 {[%emt 0:00:30]} 40. Kb3 {[%emt 0:00:30]} Rg6 {[%emt 0:01:30]} 41. Re3 {[%emt 0:01:30]} b5 {[%emt 0:01:30]} 42. c5 {[%emt 0:00:30]} Ra4 {[%emt 0:00:30]} 43. Ree1 {[%emt 0:03:30]} Ra6 {[%emt 0:01:30]} 44. Ra1 {[%emt 0:00:30]} Ra4 {[%emt 0:00:00]} 45. Rh5 {[%emt 0:01:30]} Kc8 {[%emt 0:00:00]} 46. Rh3 {[%emt 0:01:30]} Kd7 {[%emt 0:00:00]} 47. Re3 {[%emt 0:00:30]} Be7 {[%emt 0:01:00]} 48. Re2 {[%emt 0:00:30]} Bf8 {[%emt 0:00:00]} 49. Rae1 {[%emt 0:01:30]} Be7 {[%emt 0:00:00]} 50. Bb8 {[%emt 0:01:30]} Ra6 {[%emt 0:01:30]} 51. Ra2 {[%emt 0:01:30]} Ra4 {[%emt 0:00:30]} 52. Be5 {[%emt 0:01:30]} Bf8 {[%emt 0:00:30]} 53. Rae2 {[%emt 0:00:30]} Ra6 {[%emt 0:00:00]} 54. a4 {[%emt 0:01:30]} bxa4+ {[%emt 0:01:00]} 55. Ka3 {[%emt 0:08:02]} Be7 {[%emt 0:00:00]} 56. Rb2 {[%emt 0:00:53]} Bf6 {[%emt 0:01:00]} 57. Bxf6 {[%emt 0:01:31]} Rxf6 {[%emt 0:00:30]} 58. Rbe2 {[%emt 0:00:00]} Rg6 {[%emt 0:01:30]} 59. Rh1 {[%emt 0:00:38]} Ke7 {[%emt 0:00:30]} 60. d5 {[%emt 0:01:48]} Kd7 {[%emt 0:00:30]} 61. dxe6+ {[%emt 0:00:42]} Rxe6 {[%emt 0:00:00]} 62. Rxe6 {[%emt 0:00:30]} Kxe6 {[%emt 0:00:00]} 63. Rxh6+ {[%emt 0:00:30]} Kd5 {[%emt 0:00:30]} 64. Rh5 {[%emt 0:00:30]} Ke6 {[%emt 0:00:30]} 65. Rxg5 {[%emt 0:00:30]} Kf6 {[%emt 0:00:30]} 66. f4 {[%emt 0:00:30]} Ke6 {[%emt 0:00:30]} 67. Rh5 {[%emt 0:00:30]} Kf6 {[%emt 0:00:30]} 68. Rh6+ {[%emt 0:00:30]} Kg7 {[%emt 0:00:00]} 69. Rd6 {[%emt 0:03:15]} Kf7 {[%emt 0:00:00]} 70. Rh6 {[%emt 0:01:03]} Kg7 {[%emt 0:00:30]} 71. Rd6 {[%emt 0:00:30]} Kf7 {[%emt 0:00:00]} 72. Rd1 {[%emt 0:01:40]} Ke6 {[%emt 0:00:00]} 73. Rd2 {[%emt 0:00:24]} Ke7 {[%emt 0:00:30]} 74. Rd3 {[%emt 0:00:01]} Ke6 {[%emt 0:00:30]} 75. Rd8 {[%emt 0:00:30]} Ke7 {[%emt 0:00:30]} 76. Rd6 {[%emt 0:00:30]} Kf7 {[%emt 0:00:00]} 77. Rh6 {[%emt 0:00:08]} Kg7 {[%emt 0:00:00]} 78. Re6 {[%emt 0:00:35]} Kf7 {[%emt 0:00:00]} 79. Rd6 {[%emt 0:00:30]} Ke7 {[%emt 0:00:00]} 80. Rh6 {[%emt 0:00:30]} Kf7 {[%emt 0:00:30]} 81. b5 {[%emt 0:00:07]} Ra5 {[%emt 0:00:00]} 82. b6 {[%emt 0:03:37]} Rxc5 {[%emt 0:01:00]} 83. bxa7 {[%emt 0:00:30]} Ra5 {[%emt 0:00:30]} 84. Rh8 1-0